[Event "4th Sabbiadoro-Master 2018"]
[Site "Lignano Sabbiadoro"]
[Date "2018.07.30"]
[Round "3.2"]
[White "Migliorini, Matteo"]
[Black "Ristic, Nenad"]
[Result "1/2-1/2"]
[ECO "B22"]
[WhiteElo "2130"]
[BlackElo "2356"]
[Annotator "NA"]
[PlyCount "59"]
[EventDate "2018.07.29"]
[EventType "swiss"]
[EventCountry "ITA"]
[SourceTitle "playchess.com"]
[Source "ChessBase"]
[SourceQuality "1"]
[TimeControl "5400+30"]

1. e4 {[%emt 0:00:30]} c5 {[%emt 0:01:00]} 2. d4 {[%emt 0:00:00]} cxd4 {[%emt 0:00:00]} 3. c3 {[%emt 0:00:00]} Nf6 {[%emt 0:00:00]} 4. e5 {[%emt 0:00:00]} Nd5 {[%emt 0:00:30]} 5. Nf3 {[%emt 0:00:00]} e6 {[%emt 0:00:00]} 6. cxd4 {[%emt 0:00:00]} d6 {[%emt 0:01:00]} 7. Bc4 {[%emt 0:00:00]} Be7 {[%emt 0:00:00]} 8. O-O {[%emt 0:00:30]} O-O {[%emt 0:00:00]} 9. Qe2 {[%emt 0:04:30]} Nc6 {[%emt 0:00:00]} 10. Nc3 {[%emt 0:00:30]} dxe5 {[%emt 0:01:00]} 11. dxe5 {[%emt 0:01:30]} Nxc3 {[%emt 0:00:30]} 12. bxc3 {[%emt 0:00:30]} Qc7 {[%emt 0:00:00]} 13. Qe4 {[%emt 0:01:30]} Rd8 {[%emt 0:02:00]} 14. Re1 {[%emt 0:10:30]} Bd7 {[%emt 0:06:30]} 15. Bd3 {[%emt 0:12:30]} g6 {[%emt 0:00:30]} 16. Bg5 {[%emt 0:00:30]} Be8 {[%emt 0:07:30]} 17. Bf6 {[%emt 0:16:30]} Rd5 {[%emt 0:02:30]} 18. c4 {[%emt 0:07:30]} Rd7 {[%emt 0:04:30]} 19. Ng5 {[%emt 0:05:30]} Rd4 {[%emt 0:10:30]} 20. Qe3 {[%emt 0:11:30]} Qd8 {[%emt 0:02:30]} 21. Nxh7 {[%emt 0:09:29]} Bxf6 {[%emt 0:11:30]} 22. Nxf6+ {[%emt 0:00:39]} Kg7 {[%emt 0:00:30]} 23. Rad1 {[%emt 0:02:43]} Qa5 {[%emt 0:01:30]} 24. h3 {[%emt 0:06:51]} Qxa2 {[%emt 0:09:30]} 25. Ng4 {[%emt 0:00:45]} Kf8 {[%emt 0:02:30]} 26. Be4 {[%emt 0:03:40]} Qxc4 {[%emt 0:02:30]} 27. Bxc6 {[%emt 0:00:43]} Rxd1 {[%emt 0:00:30]} 28. Qh6+ {[%emt 0:01:27]} Ke7 {[%emt 0:00:30]} 29. Qg5+ {[%emt 0:00:27]} Kf8 {[%emt 0:00:00]} 30. Qh6+ {[%emt 0:00:47]} 1/2-1/2

[Event "4th Sabbiadoro-Master 2018"]
[Site "Lignano Sabbiadoro"]
[Date "2018.07.30"]
[Round "3.3"]
[White "Damia, Angelo"]
[Black "Calavalle, Giulio"]
[Result "1/2-1/2"]
[ECO "A20"]
[WhiteElo "2313"]
[BlackElo "2275"]
[Annotator "NA"]
[PlyCount "114"]
[EventDate "2018.07.29"]
[EventType "swiss"]
[EventCountry "ITA"]
[SourceTitle "playchess.com"]
[Source "ChessBase"]
[SourceQuality "1"]
[TimeControl "5400+30"]

1. c4 {[%emt 0:00:30]} e5 {[%emt 0:01:00]} 2. e3 {[%emt 0:01:30]} Nf6 {[%emt 0:02:30]} 3. a3 {[%emt 0:00:30]} Nc6 {[%emt 0:00:30] A20: English Opening: 1...e5} (3... c6 4. Nf3 e4 5. Nd4 d5 6. cxd5 cxd5 7. d3 Bc5 8. Nc3 O-O 9. Be2 exd3 10. Qxd3 Nc6 11. O-O Nxd4 12. exd4 {1-0 (47) Nakamura,H (2775)-Wang,H (2743) Stavanger 2013}) 4. d3 {[%emt 0:04:30]} d5 {[%emt 0:01:30]} 5. cxd5 {[%emt 0:00:30]} Nxd5 {[%emt 0:00:30]} 6. Nf3 {[%emt 0:00:00]} Be7 {[%emt 0:02:30]} 7. b4 {[%emt 0:02:00]} Bf6 {[%emt 0:00:30]} 8. Ra2 {[%emt 0:03:30]} O-O {[%emt 0:04:30]} 9. Rd2 $146 {[%emt 0:02:30]} ({Predecessor:} 9. Be2 Be6 10. Rd2 a5 11. b5 Na7 {½-½ (34) Csom,I (2464)-Volzhin,A (2548) Budapest 2000}) 9... Qe7 {[%emt 0:10:30]} 10. Bb2 {[%emt 0:02:30]} Bg4 {[%emt 0:08:30]} 11. Be2 {[%emt 0:07:30]} Rad8 {[%emt 0:08:30]} 12. Nc3 {[%emt 0:06:30]} Nxc3 {[%emt 0:00:30]} 13. Bxc3 {[%emt 0:00:30]} e4 {[%emt 0:04:30]} 14. Bxf6 {[%emt 0:00:30]} Qxf6 {[%emt 0:00:00]} 15. b5 {[%emt 0:17:30]} exd3 {[%emt 0:08:00]} 16. Rxd3 {[%emt 0:27:30]} Rxd3 {[%emt 0:03:30]} 17. Qxd3 {[%emt 0:00:37]} Bxf3 {[%emt 0:02:30]} 18. gxf3 {[%emt 0:01:35]} Ne5 {[%emt 0:16:30]} 19. Qe4 {[%emt 0:00:49]} c6 {[%emt 0:00:30]} 20. bxc6 {[%emt 0:02:09]} Nxc6 {[%emt 0:00:30]} 21. O-O {[%emt 0:00:10]} Qg6+ {[%emt 0:00:30]} 22. Qxg6 {[%emt 0:01:05]} hxg6 {[%emt 0:00:30]} 23. Rb1 {[%emt 0:00:19]} b6 {[%emt 0:02:30]} 24. Rc1 {[%emt 0:00:08]} Na5 {[%emt 0:05:54]} 25. Rc7 {[%emt 0:00:05]} Rd8 {[%emt 0:01:25]} 26. Rxa7 {[%emt 0:00:12]} g5 {[%emt 0:01:46]} 27. Kg2 {[%emt 0:03:55]} Rd6 {[%emt 0:05:31]} 28. Bb5 {[%emt 0:00:22]} Nc6 {[%emt 0:01:00]} 29. Rc7 {[%emt 0:11:01]} Ne5 {[%emt 0:00:56]} 30. a4 {[%emt 0:01:23]} Rf6 {[%emt 0:00:17]} 31. Be2 {[%emt 0:00:21]} g6 {[%emt 0:00:51]} 32. Re7 {[%emt 0:00:27]} Nc6 {[%emt 0:00:28]} 33. Re4 {[%emt 0:00:51]} Kg7 {[%emt 0:02:17]} 34. Bb5 {[%emt 0:00:26]} Nd8 {[%emt 0:00:53]} 35. Re5 {[%emt 0:00:54]} Kh6 {[%emt 0:01:29]} 36. Re7 {[%emt 0:01:01]} Kg7 {[%emt 0:00:51]} 37. Bd7 {[%emt 0:01:47]} Rd6 {[%emt 0:00:48]} 38. Bc8 {[%emt 0:00:22]} Nc6 {[%emt 0:01:13]} 39. Re4 {[%emt 0:00:27]} Rf6 {[%emt 0:01:06]} 40. Bd7 {[%emt 0:00:32]} Rd6 {[%emt 0:00:44]} 41. Bxc6 {[%emt 0:00:14]} Rxc6 {[%emt 0:00:04]} 42. Re5 {[%emt 0:00:25]} f5 {[%emt 0:01:49]} 43. Rb5 {[%emt 0:00:23]} Rc4 {[%emt 0:00:18]} 44. Rxb6 {[%emt 0:00:25]} Rxa4 {[%emt 0:00:05]} 45. Rd6 {[%emt 0:00:20]} Kf7 {[%emt 0:00:43]} 46. Rd4 {[%emt 0:00:49]} Rxd4 {[%emt 0:00:50]} 47. exd4 {[%emt 0:00:02]} Ke6 {[%emt 0:00:18]} 48. f4 {[%emt 0:01:02]} gxf4 {[%emt 0:01:08]} 49. h4 {[%emt 0:00:17]} Kd5 {[%emt 0:00:08]} 50. Kf3 {[%emt 0:00:10]} Kxd4 {[%emt 0:00:05]} 51. Kxf4 {[%emt 0:00:13]} Kd3 {[%emt 0:00:12]} 52. Kg5 {[%emt 0:00:12]} Ke2 $18 {[%emt 0:00:27]} 53. Kxg6 {[%emt 0:00:07]} f4 {[%emt 0:00:11]} 54. h5 {[%emt 0:00:12]} Kxf2 {[%emt 0:00:17]} 55. h6 {[%emt 0:00:07]} Kg2 {[%emt 0:00:34]} 56. h7 {[%emt 0:00:01]} f3 {[%emt 0:00:14]} 57. h8=Q {[%emt 0:00:03]} f2 {[%emt 0:00:04]} 1/2-1/2

[Event "4th Sabbiadoro-Master 2018"]
[Site "Lignano Sabbiadoro"]
[Date "2018.07.30"]
[Round "3.5"]
[White "Olivetti, Davide"]
[Black "Nester, Ihor"]
[Result "0-1"]
[ECO "C44"]
[WhiteElo "2234"]
[BlackElo "2305"]
[Annotator "NA"]
[PlyCount "88"]
[EventDate "2018.07.29"]
[EventType "swiss"]
[EventCountry "ITA"]
[SourceTitle "playchess.com"]
[Source "ChessBase"]
[SourceQuality "1"]
[TimeControl "5400+30"]

1. e4 {[%emt 0:02:30]} e5 {[%emt 0:06:00]} 2. Nf3 {[%emt 0:01:30]} Nc6 {[%emt 0:00:30]} 3. d4 {[%emt 0:00:00]} exd4 {[%emt 0:00:00]} 4. c3 {[%emt 0:00:00]} d5 {[%emt 0:01:00]} 5. exd5 {[%emt 0:03:30]} Qxd5 {[%emt 0:00:30]} 6. cxd4 {[%emt 0:00:30]} Bb4+ {[%emt 0:00:30]} 7. Nc3 {[%emt 0:00:30]} Bg4 {[%emt 0:00:30]} 8. Be2 {[%emt 0:00:00]} Bxf3 {[%emt 0:00:00]} 9. Bxf3 {[%emt 0:00:00]} Qc4 {[%emt 0:00:00]} 10. Be3 {[%emt 0:00:30]} Nge7 {[%emt 0:05:30]} 11. Qb3 {[%emt 0:10:30]} Qxb3 {[%emt 0:01:30]} 12. axb3 {[%emt 0:00:30]} O-O-O {[%emt 0:05:30]} 13. O-O {[%emt 0:01:30]} a6 {[%emt 0:01:30]} 14. Rfd1 {[%emt 0:00:30]} h6 {[%emt 0:07:30]} 15. g3 {[%emt 0:01:30]} g5 {[%emt 0:01:30]} 16. Ra4 {[%emt 0:02:30]} Bd6 {[%emt 0:02:30]} 17. Ne4 {[%emt 0:01:30]} Nd5 {[%emt 0:09:30]} 18. Nxd6+ {[%emt 0:04:30]} Rxd6 {[%emt 0:00:00]} 19. h4 {[%emt 0:02:30]} gxh4 {[%emt 0:03:00]} 20. gxh4 {[%emt 0:01:30]} Nb6 {[%emt 0:02:30]} 21. Raa1 {[%emt 0:01:30]} Rhd8 {[%emt 0:00:30]} 22. Bg4+ {[%emt 0:16:30]} Kb8 {[%emt 0:00:30]} 23. Kh2 {[%emt 0:01:30]} Nxd4 {[%emt 0:16:30]} 24. Rac1 {[%emt 0:03:30]} f5 {[%emt 0:09:30]} 25. Bh5 {[%emt 0:00:30]} Rd5 {[%emt 0:06:30]} 26. Bf4 {[%emt 0:12:30]} Ne6 {[%emt 0:00:30]} 27. Rxd5 {[%emt 0:00:30]} Nxd5 {[%emt 0:00:30]} 28. Be5 {[%emt 0:03:30]} Ndf4 {[%emt 0:00:30]} 29. Bxf4 {[%emt 0:12:39]} Nxf4 {[%emt 0:00:30]} 30. Rd1 {[%emt 0:00:07]} Kc8 {[%emt 0:01:49]} 31. Rxd8+ {[%emt 0:01:43]} Kxd8 {[%emt 0:00:03]} 32. Bf3 {[%emt 0:00:11]} c6 {[%emt 0:03:31]} 33. Kg3 {[%emt 0:00:44]} Ne6 {[%emt 0:00:19]} 34. Bd1 {[%emt 0:02:50]} Ke7 {[%emt 0:00:08]} 35. f4 {[%emt 0:00:33]} Nd4 {[%emt 0:02:15]} 36. Kf2 {[%emt 0:00:36]} c5 {[%emt 0:00:41]} 37. Ke3 {[%emt 0:00:06]} a5 {[%emt 0:00:24]} 38. Kd3 {[%emt 0:00:40]} Kd6 {[%emt 0:00:14]} 39. Kc4 {[%emt 0:00:42]} b5+ {[%emt 0:00:06]} 40. Kd3 {[%emt 0:00:31]} Kd5 {[%emt 0:00:20]} 41. Ke3 {[%emt 0:00:06]} Ke6 {[%emt 0:04:41]} 42. Kd2 {[%emt 0:01:43]} Kd6 {[%emt 0:00:11]} 43. Kc3 {[%emt 0:00:47]} Kd5 {[%emt 0:00:11]} 44. Kd3 {[%emt 0:00:06]} Nxb3 {[%emt 0:00:24]} 0-1

[Event "4th Sabbiadoro-Master 2018"]
[Site "Lignano Sabbiadoro"]
[Date "2018.07.30"]
[Round "3.7"]
[White "Bardone, Lorenzo"]
[Black "Mufic, Goran"]
[Result "1/2-1/2"]
[ECO "E09"]
[WhiteElo "2103"]
[BlackElo "2299"]
[Annotator "NA"]
[PlyCount "93"]
[EventDate "2018.07.29"]
[EventType "swiss"]
[EventCountry "ITA"]
[SourceTitle "playchess.com"]
[Source "ChessBase"]
[SourceQuality "1"]
[TimeControl "5400+30"]

1. Nf3 {[%emt 0:00:30]} d5 {[%emt 0:01:00]} 2. c4 {[%emt 0:00:00]} e6 {[%emt 0:00:00]} 3. g3 {[%emt 0:00:00]} Nf6 {[%emt 0:00:00]} 4. Bg2 {[%emt 0:00:30]} Be7 {[%emt 0:00:30]} 5. d4 {[%emt 0:00:00]} O-O {[%emt 0:00:30]} 6. O-O {[%emt 0:00:00]} c6 {[%emt 0:00:30]} 7. Nbd2 {[%emt 0:00:30]} Nbd7 {[%emt 0:00:30]} 8. Qc2 {[%emt 0:00:00]} b6 {[%emt 0:00:30]} 9. e4 {[%emt 0:02:00]} Bb7 {[%emt 0:00:30]} 10. e5 {[%emt 0:00:30]} Ne8 {[%emt 0:00:00]} 11. cxd5 {[%emt 0:01:30]} cxd5 {[%emt 0:00:00]} 12. Nb1 {[%emt 0:01:30]} Ba6 {[%emt 0:00:30]} 13. Re1 {[%emt 0:00:30]} Nc7 {[%emt 0:07:30]} 14. Nc3 {[%emt 0:05:30]} Rc8 {[%emt 0:00:30]} 15. Be3 {[%emt 0:05:30]} Nb8 {[%emt 0:04:30]} 16. h4 {[%emt 0:04:30]} Nb5 {[%emt 0:02:30]} 17. Ng5 {[%emt 0:01:30]} Bxg5 {[%emt 0:00:30]} 18. hxg5 {[%emt 0:00:30]} Nc6 {[%emt 0:05:30]} 19. Qd1 {[%emt 0:14:30]} Qe7 {[%emt 0:10:30]} 20. Bf1 {[%emt 0:09:30]} Nxc3 {[%emt 0:01:30]} 21. bxc3 {[%emt 0:00:00]} Bxf1 {[%emt 0:00:30]} 22. Rxf1 {[%emt 0:00:00]} Na5 {[%emt 0:06:30]} 23. Kg2 {[%emt 0:03:30]} Nc4 {[%emt 0:01:30]} 24. Bf4 {[%emt 0:00:30]} f6 {[%emt 0:10:30]} 25. gxf6 {[%emt 0:05:30]} gxf6 {[%emt 0:00:30]} 26. Qg4+ {[%emt 0:00:30]} Kh8 {[%emt 0:00:30]} 27. exf6 {[%emt 0:01:30]} Rxf6 {[%emt 0:02:30]} 28. Qh4 {[%emt 0:03:30]} Rg8 {[%emt 0:03:30]} 29. Rae1 {[%emt 0:05:30]} Qf7 {[%emt 0:00:30]} 30. Be5 {[%emt 0:05:30]} Nxe5 {[%emt 0:00:30]} 31. Rxe5 {[%emt 0:00:00]} Rf3 {[%emt 0:07:30]} 32. Rxe6 {[%emt 0:09:00]} Rf8 {[%emt 0:05:30]} 33. Re2 {[%emt 0:02:30]} Rxc3 {[%emt 0:00:30]} 34. Re7 {[%emt 0:00:51]} Qf3+ {[%emt 0:13:31]} 35. Kg1 {[%emt 0:00:17]} Qf5 {[%emt 0:00:21]} 36. Rxa7 {[%emt 0:06:24]} Rf3 {[%emt 0:02:16]} 37. a4 {[%emt 0:03:08]} Kg8 {[%emt 0:07:31]} 38. Qh2 {[%emt 0:03:26]} Rd3 {[%emt 0:03:27]} 39. Qh4 {[%emt 0:00:30]} Rd1 {[%emt 0:00:30]} 40. Rxd1 {[%emt 0:00:30]} Qxf2+ {[%emt 0:00:30]} 41. Kh1 {[%emt 0:00:30]} Qf3+ {[%emt 0:00:30]} 42. Kh2 {[%emt 0:00:30]} Qf2+ {[%emt 0:00:30]} 43. Kh3 {[%emt 0:00:30]} Qf3 {[%emt 0:00:30]} 44. Kh2 {[%emt 0:00:30]} Qf5 {[%emt 0:00:30]} 45. Kg1 {[%emt 0:00:30]} Qf2+ {[%emt 0:00:30]} 46. Kh1 {[%emt 0:00:30]} Qf3+ {[%emt 0:00:30]} 47. Kh2 {[%emt 0:00:30]} 1/2-1/2

[Event "4th Sabbiadoro-Master 2018"]
[Site "Lignano Sabbiadoro"]
[Date "2018.07.30"]
[Round "3.8"]
[White "Tiraboschi, Nicolo`"]
[Black "Sgnaolin, Davide"]
[Result "1/2-1/2"]
[ECO "B31"]
[WhiteElo "2102"]
[BlackElo "2267"]
[Annotator "NA"]
[PlyCount "58"]
[EventDate "2018.07.29"]
[EventType "swiss"]
[EventCountry "ITA"]
[SourceTitle "playchess.com"]
[Source "ChessBase"]
[SourceQuality "1"]
[TimeControl "5400+30"]

1. e4 c5 2. Nf3 Nc6 3. Bb5 g6 4. O-O Bg7 5. Re1 Nf6 6. d3 O-O 7. Nbd2 d6 8. c3 Bd7 9. Nf1 a6 10. Ba4 b5 11. Bc2 b4 12. h3 Ne8 13. d4 bxc3 14. bxc3 Nc7 15. e5 Nb5 16. Qd2 Qa5 17. a4 Nxc3 18. dxc5 Qxc5 19. Bb2 Nd5 20. Bb3 Ndb4 21. Rad1 Na5 22. Bd4 Nxb3 23. Bxc5 Nxd2 24. Rxd2 dxc5 25. Rxd7 e6 26. Ne3 Rfd8 27. Red1 Rxd7 28. Rxd7 Nc6 29. Nc4 Rd8 1/2-1/2

[Event "4th Sabbiadoro-Master 2018"]
[Site "Lignano Sabbiadoro"]
[Date "2018.07.30"]
[Round "3.9"]
[White "Grochowalski, Pawel"]
[Black "Ventura, Salvatore"]
[Result "1-0"]
[ECO "A80"]
[WhiteElo "2049"]
[BlackElo "2190"]
[Annotator "NA"]
[PlyCount "107"]
[EventDate "2018.07.29"]
[EventType "swiss"]
[EventCountry "ITA"]
[SourceTitle "playchess.com"]
[Source "ChessBase"]
[SourceQuality "1"]
[TimeControl "5400+30"]

1. d4 f5 2. Nc3 Nf6 3. Bg5 d5 4. Bxf6 exf6 5. e3 Be6 6. Bd3 Nc6 7. a3 Qd7 8. Nce2 g6 9. h4 h5 10. Nf4 Bf7 11. c3 Na5 12. Qc2 Nc4 13. Nf3 O-O-O 14. Nd2 Nd6 15. c4 dxc4 16. Nxc4 Qc6 17. Nxd6+ Rxd6 18. Qxc6 Rxc6 19. Kd2 Rb6 20. b4 a5 21. b5 Bd6 22. g3 a4 23. Ne2 Kd7 24. Nc3 Ra8 25. Bc2 Bb3 26. Bxb3 axb3 27. Rhb1 Rxa3 28. Rxa3 Bxa3 29. Rxb3 Bf8 30. Nd5 Rd6 31. Nf4 g5 32. Nxh5 Ke6 33. Kd3 Rd7 34. hxg5 fxg5 35. f3 Bd6 36. g4 fxg4 37. fxg4 c5 38. bxc6 bxc6 39. Ke4 Rf7 40. Rb6 Kd7 41. Rb7+ Bc7 42. Rb2 Re7+ 43. Kd3 Rf7 44. Rg2 Ke6 45. Ke4 Bd6 46. Ng3 Bxg3 47. Rxg3 Rf1 48. Rh3 Rf6 49. Rh5 Rg6 50. Rh8 Kf6 51. Rf8+ Kg7 52. Rf5 Kh6 53. Ke5 Kg7 54. e4 1-0

[Event "4th Sabbiadoro-Master 2018"]
[Site "Lignano Sabbiadoro"]
[Date "2018.07.30"]
[Round "3.10"]
[White "Siclari, Giovanni"]
[Black "Ridolfo, Enrico"]
[Result "1-0"]
[ECO "B38"]
[WhiteElo "2185"]
[BlackElo "2047"]
[Annotator "NA"]
[PlyCount "81"]
[EventDate "2018.07.29"]
[EventType "swiss"]
[EventCountry "ITA"]
[SourceTitle "playchess.com"]
[Source "ChessBase"]
[SourceQuality "1"]
[TimeControl "5400+30"]

1. Nf3 {[%emt 0:00:30]} g6 {[%emt 0:01:00]} 2. c4 {[%emt 0:00:00]} Bg7 {[%emt 0:00:30]} 3. e4 {[%emt 0:00:00]} c5 {[%emt 0:00:30]} 4. d4 {[%emt 0:00:00]} cxd4 {[%emt 0:00:00]} 5. Nxd4 {[%emt 0:00:00]} Nc6 {[%emt 0:00:00]} 6. Be3 {[%emt 0:00:00]} Nf6 {[%emt 0:00:30]} 7. Nc3 {[%emt 0:00:00]} O-O {[%emt 0:00:30]} 8. Be2 {[%emt 0:00:30]} d6 {[%emt 0:00:30]} 9. O-O {[%emt 0:00:00]} Bd7 {[%emt 0:00:00]} 10. Qd2 {[%emt 0:00:00]} Nxd4 {[%emt 0:02:00]} 11. Bxd4 {[%emt 0:00:00]} Bc6 {[%emt 0:00:30]} 12. f3 {[%emt 0:00:00]} Qa5 {[%emt 0:02:30]} 13. Rac1 {[%emt 0:11:30]} Rac8 {[%emt 0:04:30]} 14. Rfd1 {[%emt 0:00:30]} Rfd8 {[%emt 0:02:30]} 15. b3 {[%emt 0:06:30]} h5 {[%emt 0:10:30]} 16. Be3 {[%emt 0:05:30]} Nd7 {[%emt 0:11:30]} 17. Nd5 {[%emt 0:06:30]} Qxd2 {[%emt 0:00:30]} 18. Rxd2 {[%emt 0:00:00]} Kf8 {[%emt 0:05:30]} 19. Bg5 {[%emt 0:06:00]} Bxd5 {[%emt 0:04:30]} 20. Rxd5 {[%emt 0:00:30]} Nf6 {[%emt 0:08:30]} 21. Rd2 {[%emt 0:01:30]} Ke8 {[%emt 0:10:30]} 22. Be3 {[%emt 0:03:30]} Rc6 {[%emt 0:04:30]} 23. c5 {[%emt 0:05:30]} Nd7 {[%emt 0:02:30]} 24. Bb5 {[%emt 0:06:30]} Rc7 {[%emt 0:00:00]} 25. c6 {[%emt 0:12:30]} bxc6 {[%emt 0:01:00]} 26. Rxc6 {[%emt 0:00:30]} Rdc8 {[%emt 0:03:30]} 27. Ra6 {[%emt 0:03:30]} Rc1+ {[%emt 0:09:50]} 28. Kf2 {[%emt 0:00:30]} Bc3 {[%emt 0:05:29]} 29. Rxa7 {[%emt 0:05:30]} Bxd2 {[%emt 0:00:58]} 30. Bxd7+ {[%emt 0:00:00]} Kd8 {[%emt 0:00:04]} 31. Bxd2 {[%emt 0:00:00]} R1c7 {[%emt 0:01:27]} 32. Ba5 {[%emt 0:01:30]} Kxd7 {[%emt 0:00:07]} 33. Rxc7+ {[%emt 0:00:00]} Rxc7 {[%emt 0:00:04]} 34. Bxc7 {[%emt 0:00:00]} Kxc7 {[%emt 0:00:06]} 35. Ke3 {[%emt 0:00:30]} Kc6 {[%emt 0:00:14]} 36. Kd4 {[%emt 0:00:00]} f5 {[%emt 0:00:59]} 37. a4 {[%emt 0:00:00]} e6 {[%emt 0:00:40]} 38. b4 {[%emt 0:00:30]} g5 {[%emt 0:01:42]} 39. b5+ {[%emt 0:00:30]} Kb6 {[%emt 0:00:11]} 40. exf5 {[%emt 0:00:30]} exf5 {[%emt 0:00:20]} 41. h3 {[%emt 0:00:30]} 1-0

[Event "4th Sabbiadoro-Master 2018"]
[Site "Lignano Sabbiadoro"]
[Date "2018.07.31"]
[Round "4.3"]
[White "Calavalle, Giulio"]
[Black "Migliorini, Matteo"]
[Result "1-0"]
[ECO "B26"]
[WhiteElo "2275"]
[BlackElo "2130"]
[Annotator "NA"]
[PlyCount "107"]
[EventDate "2018.07.29"]
[EventType "swiss"]
[EventCountry "ITA"]
[SourceTitle "playchess.com"]
[Source "ChessBase"]
[SourceQuality "1"]
[TimeControl "5400+30"]

1. e4 {[%emt 0:01:30]} c5 {[%emt 0:01:00]} 2. Nc3 {[%emt 0:01:30]} Nc6 {[%emt 0:00:00]} 3. g3 {[%emt 0:00:30]} g6 {[%emt 0:00:00]} 4. Bg2 {[%emt 0:00:00]} Bg7 {[%emt 0:00:30]} 5. d3 {[%emt 0:00:00]} d6 {[%emt 0:02:30]} 6. Be3 {[%emt 0:00:30]} e6 {[%emt 0:01:30]} 7. Nge2 {[%emt 0:01:30] LiveBook: 103 Games} Nd4 {[%emt 0:02:30]} 8. Qd2 {[%emt 0:01:30]} Ne7 {[%emt 0:02:30]} 9. Nd1 {[%emt 0:02:30]} O-O {[%emt 0:02:30]} 10. Nxd4 {[%emt 0:02:30] B26: Closed Sicilian: 3 g3, lines with early Be3} (10. O-O Rb8 11. Nxd4 cxd4 12. Bh6 e5 13. c3 Nc6 14. Bxg7 Kxg7 15. f4 f6 {½-½ (15) Gozzoli,Y (2430)-Bagheri,A (2541) Paris 2003}) 10... cxd4 {[%emt 0:03:30]} 11. Bh6 {[%emt 0:00:30]} Bxh6 $146 {[%emt 0:07:30]} ({Predecessor:} 11... e5 12. Bxg7 Kxg7 13. f4 Nc6 14. O-O {0-1 (48) Wegner,V (1689)-Kemper,A (1866) Germany 2008}) 12. Qxh6 {[%emt 0:01:30]} e5 {[%emt 0:01:30]} 13. h4 {[%emt 0:03:30]} f6 {[%emt 0:00:00]} 14. Qd2 {[%emt 0:03:30]} Be6 {[%emt 0:04:00]} 15. f4 {[%emt 0:03:30]} Nc6 {[%emt 0:11:30]} 16. Nf2 {[%emt 0:08:30]} Rc8 {[%emt 0:04:30]} 17. Nh3 {[%emt 0:06:30]} Qa5 {[%emt 0:00:30]} 18. c3 {[%emt 0:02:30]} dxc3 {[%emt 0:00:30]} 19. bxc3 {[%emt 0:00:30]} Ne7 {[%emt 0:05:30]} 20. Rc1 {[%emt 0:01:30]} Rc7 {[%emt 0:02:30]} 21. h5 {[%emt 0:05:30]} Rfc8 {[%emt 0:02:30]} 22. c4 {[%emt 0:09:30]} Qxd2+ {[%emt 0:05:30]} 23. Kxd2 {[%emt 0:00:30]} Nc6 {[%emt 0:01:30]} 24. hxg6 {[%emt 0:00:30]} hxg6 {[%emt 0:00:30]} 25. Nf2 {[%emt 0:01:30]} Rh7 {[%emt 0:02:30]} 26. Rxh7 {[%emt 0:04:30]} Kxh7 {[%emt 0:00:30]} 27. f5 {[%emt 0:06:30]} gxf5 {[%emt 0:08:30]} 28. Bh3 {[%emt 0:00:30]} Nd4 {[%emt 0:05:30]} 29. exf5 {[%emt 0:00:30]} Bxf5 {[%emt 0:05:31]} 30. Bxf5+ {[%emt 0:00:30]} Nxf5 {[%emt 0:00:04]} 31. Ne4 {[%emt 0:00:00]} Kg6 {[%emt 0:03:14]} 32. Rf1 {[%emt 0:01:00]} Rf8 {[%emt 0:00:05]} 33. g4 {[%emt 0:00:30]} Nh6 {[%emt 0:01:27]} 34. g5 {[%emt 0:01:30]} Ng4 {[%emt 0:03:59]} 35. gxf6 {[%emt 0:01:30]} Nxf6 {[%emt 0:00:14]} 36. Rg1+ {[%emt 0:00:00]} Kh5 {[%emt 0:03:17]} 37. Nxd6 {[%emt 0:00:00]} Ng4 {[%emt 0:03:27]} 38. Nxb7 {[%emt 0:03:30]} Rf2+ {[%emt 0:00:14]} 39. Kc3 {[%emt 0:00:30]} Rxa2 {[%emt 0:00:03]} 40. c5 {[%emt 0:02:30]} Ra6 {[%emt 0:01:12]} 41. Kb4 {[%emt 0:02:30]} Rc6 {[%emt 0:00:59]} 42. Na5 {[%emt 0:02:30]} Rc8 {[%emt 0:01:14]} 43. Nc4 {[%emt 0:00:30]} Kh4 {[%emt 0:03:00]} 44. Re1 {[%emt 0:01:30]} Rb8+ {[%emt 0:01:22]} 45. Ka5 {[%emt 0:00:54]} Rc8 {[%emt 0:01:00]} 46. Kb5 {[%emt 0:00:14]} Rb8+ {[%emt 0:00:47]} 47. Kc6 {[%emt 0:00:31]} Rc8+ {[%emt 0:00:06]} 48. Kd6 {[%emt 0:06:46]} Rd8+ {[%emt 0:00:05]} 49. Ke6 {[%emt 0:02:42]} Rc8 $18 {[%emt 0:00:26]} (49... Re8+ 50. Kd7 Nf6+ 51. Kc7 e4) 50. Nxe5 {[%emt 0:01:33]} Rxc5 {[%emt 0:00:21]} 51. d4 {[%emt 0:01:57]} Rb5 {[%emt 0:01:25]} 52. Re4 {[%emt 0:00:22]} Rb6+ {[%emt 0:00:33]} 53. Kd7 {[%emt 0:00:17]} Rb7+ {[%emt 0:00:25]} 54. Kc6 {[%emt 0:00:15]} 1-0